fUST/lending_fUST_20240615
["ID","MTS","AMOUNT","RATE_DAILY","PERIOD"]
[329496665,1718395849427,-50.91592599,0.0001726,2]
[329496689,1718395849989,-302.36544079,0.00016985,2]
[329496690,1718395850000,-509.16407401,0.0001726,2]
[329496691,1718395850012,-1634.27,0.0001726,2]
[329496692,1718395850081,-513.75,0.0001726,2]
[329496693,1718395850093,-1513.6,0.0001726,2]
[329496694,1718395850109,-133.17494721,0.0001726,2]
[329496696,1718395850130,-1826.99505279,0.0001726,2]
[329496699,1718395850143,-517.88,0.0001726,2]
[329496701,1718395850155,-693.17,0.0001726,2]
[329496702,1718395850167,-500.0,0.0001726,2]
[329496704,1718395850179,-500.0,0.0001726,2]
[329496706,1718395850190,-500.0,0.0001726,2]
[329496708,1718395850201,-311.60077168,0.0001726,2]
[329496711,1718395850225,-680.0,0.0001726,2]
[329496713,1718395850239,-279.75,0.0001726,2]
[329496715,1718395850278,-2093.56,0.00016438,2]
[329496719,1718395850309,-4268.30922832,0.0001726,2]
[329496723,1718395850328,-817.46,0.0001726,2]
[329496725,1718395850349,-2482.61,0.0001726,2]
[329496727,1718395850363,-557.52,0.0001726,2]
[329496728,1718395850374,-788.38,0.0001726,2]
[329496730,1718395850393,-500.0,0.0001726,2]
[329496732,1718395850405,-939.78,0.0001726,2]
[329496733,1718395850416,-500.0,0.0001726,2]
[329496735,1718395850433,-931.49,0.0001726,2]
[329496738,1718395850447,-3777.16248714,0.0001726,2]
[329496740,1718395850500,-367.83751286,0.0001726,2]
[329496743,1718395850513,-500.0,0.0001726,2]
[329496745,1718395850534,-513.75063545,0.0001726,2]
[329496747,1718395850556,-1010.50936455,0.0001726,2]
[329496749,1718395850576,-2809.0895863,0.0001726,2]
[329496761,1718395850743,-827.84,0.00016712,2]
[329496768,1718395850949,-1265.72,0.00016712,2]
[329496769,1718395850963,-2860.76756248,0.0001726,2]
[329496772,1718395850992,-979.89285122,0.0001726,2]
[329496774,1718395851005,-500.0,0.0001726,2]
[329496775,1718395851026,-292.5693121,0.00017288,2]
[329496777,1718395851061,-307.2703269,0.00017288,2]
[329496779,1718395851072,-306.0,0.00017288,2]
[329496781,1718395851084,-500.0,0.00017533,2]
[329496783,1718395851096,-500.0,0.00017533,2]
[329496784,1718395851110,-500.0,0.00017534,2]
[329496786,1718395851148,-500.0,0.00017534,2]
[329496788,1718395851170,-513.79,0.00017534,2]
[329496791,1718395851211,-500.0,0.00017534,2]
[329496793,1718395851263,-500.0,0.00017534,2]
[329496796,1718395851297,-500.0,0.00017534,2]
[329496797,1718395851325,-500.0,0.00017534,2]
[329496799,1718395851336,-500.0,0.00017534,2]
[329496802,1718395851354,-530.07,0.00017534,2]
[329496803,1718395851404,-560.08,0.00017534,2]
[329496806,1718395851426,-1634.27,0.00017534,2]
[329496808,1718395851475,-513.75,0.00017534,2]
[329496810,1718395851486,-1513.6,0.00017534,2]
[329496812,1718395851532,-1960.17,0.00017534,2]
[329496814,1718395851543,-517.88,0.00017534,2]
[329496816,1718395851602,-693.17,0.00017534,2]
[329496818,1718395851632,-500.0,0.00017534,2]
[329496820,1718395851643,-500.0,0.00017534,2]
[329496822,1718395851657,-5539.66,0.00017534,2]
[329496825,1718395851677,-817.46,0.00017534,2]
[329496827,1718395851688,-2311.50062544,0.00017534,2]
[329497761,1718395947943,155.00310006,9.999e-05,2]
[329497762,1718395966252,1682.14201396,9.999e-05,2]
[329497763,1718396026339,151.00302006,0.00019762,30]
[329497764,1718396026482,146.71340223,0.00019367,120]
[329497765,1718396026542,4.28961783,0.00019367,120]
[329497766,1718396292418,151.00302006,0.00019544,30]
[329497767,1718396292528,151.00302006,0.00019153,120]
[329497770,1718396771137,151.01812217,0.00019649,30]
[329497771,1718396771256,151.01812217,0.00019256,120]
[329497785,1718396972872,-652.3891758,0.00015073,2]
[329497786,1718396972947,-461.02496488,0.00015073,2]
[329497787,1718396973004,-652.3891758,0.00015073,2]
[329497788,1718397032590,151.01661183,0.00019845,30]
[329497791,1718397033125,151.01661183,0.00019448,120]
[329497813,1718397035496,-581.41497591,0.00015073,2]
[329497814,1718397035506,-676.95854,0.00015074,2]
[329497816,1718397035516,-304.3775178,0.00015155,2]
[329497819,1718397035528,-1000.0,0.00016,3]
[329497820,1718397035556,-164.651568,0.00016164,2]
[329497822,1718397035567,-552.85223721,0.00016338,2]
[329497825,1718397035592,-3121.53793359,0.00016437,4]
[329497827,1718397035603,-300.0,0.00016437,2]
[329497828,1718397035617,-500.0,0.00016438,2]
[329497830,1718397035628,-500.0,0.00016438,2]
[329497832,1718397035652,-500.0,0.00016438,2]
[329497833,1718397035663,-500.0,0.00016438,2]
[329497835,1718397035677,-503.36417828,0.00016438,2]
[329497837,1718397035691,-500.0,0.00016438,2]
[329497839,1718397035702,-500.0,0.00016438,2]
[329497840,1718397035726,-500.0,0.00016438,2]
[329497844,1718397035770,-500.0,0.00016438,2]
[329497847,1718397035820,-500.0,0.00016438,2]
[329497848,1718397035864,-500.0,0.00016438,2]
[329497851,1718397035882,-569.95969663,0.00016438,2]
[329497853,1718397035916,-500.0,0.00016438,2]
[329497855,1718397035929,-500.0,0.00016438,2]
[329497857,1718397035941,-500.0,0.00016438,2]
[329497859,1718397035956,-500.0,0.00016438,2]
[329497861,1718397035973,-500.0,0.00016438,2]
[329497863,1718397035992,-500.0,0.00016438,2]
[329497864,1718397036009,-500.0,0.00016438,2]
[329497866,1718397036041,-500.0,0.00016438,2]
[329497868,1718397036088,-500.0,0.00016438,2]
[329497870,1718397036109,-500.0,0.00016438,2]
[329497872,1718397036129,-500.0,0.00016438,2]
[329497875,1718397036149,-500.0,0.00016438,2]
[329497877,1718397036160,-500.0,0.00016438,2]
[329497879,1718397036177,-500.0,0.00016438,2]
[329497882,1718397036195,-638.9216037,0.00016438,2]
[329497884,1718397036214,-500.0,0.00016438,2]
[329497886,1718397036228,-500.0,0.00016438,2]
[329497888,1718397036269,-500.0,0.00016438,2]
[329497890,1718397036286,-500.0,0.00016438,2]
[329497892,1718397036308,-500.0,0.00016438,2]
[329497894,1718397036321,-530.5829225,0.00016438,2]
[329497896,1718397036360,-500.0,0.00016438,2]
[329497898,1718397036373,-500.0,0.00016438,2]
[329497899,1718397036395,-500.0,0.00016438,2]
[329497900,1718397036409,-500.0,0.00016438,2]
[329497902,1718397036447,-500.0,0.00016438,2]
[329497904,1718397036461,-500.0,0.00016438,2]
[329497905,1718397036493,-500.0,0.00016438,2]
[329497908,1718397036516,-500.0,0.00016438,2]
[329497910,1718397036541,-500.0,0.00016438,2]
[329497912,1718397036565,-500.0,0.00016438,2]
[329497913,1718397036576,-500.0,0.00016438,2]
[329497915,1718397036591,-500.0,0.00016438,2]
[329497917,1718397036608,-500.0,0.00016438,2]
[329497919,1718397036621,-500.0,0.00016438,2]
[329497921,1718397036635,-500.0,0.00016438,2]
[329497923,1718397036648,-500.0,0.00016438,2]
[329497925,1718397036659,-500.0,0.00016438,2]
[329497927,1718397036671,-500.0,0.00016438,2]
[329497929,1718397036683,-500.0,0.00016438,2]
[329497932,1718397036709,-500.0,0.00016438,2]
[329497935,1718397036757,-500.0,0.00016438,2]
[329497937,1718397036769,-500.0,0.00016438,2]
[329497939,1718397036780,-500.0,0.00016438,2]
[329497940,1718397036801,-200.21540642,0.00016438,2]
[329497942,1718397036839,-415.75723587,0.00016438,2]
[329497943,1718397036864,-1312.71,0.00016438,2]
[329497945,1718397036897,-500.0,0.00016438,2]
[329497948,1718397036929,-358.39101344,0.00016438,2]
[329497951,1718397036958,-7578.88699918,0.00016438,2]
[329497953,1718397037000,-6591.39949,0.00016438,2]
[329497971,1718397042388,-1087.73351082,0.00016438,2]
[329497972,1718397042421,-1543.46,0.00016438,2]
[329497974,1718397042440,-500.0,0.00016438,4]
[329497976,1718397042453,-5541.46,0.00016438,2]
[329497977,1718397042464,-1416.32,0.00016438,2]
[329497978,1718397042509,-500.0,0.00016438,2]
[329497979,1718397042522,-500.0,0.00016438,2]
[329497980,1718397042535,-500.0,0.00016438,2]
[329497981,1718397042568,-1628.0,0.00016438,2]
[329497982,1718397042633,-500.0,0.00016438,2]
[329497983,1718397042673,-579.41,0.00016438,2]
[329497984,1718397042688,-500.0,0.00016438,2]
[329497985,1718397042728,-500.0,0.00016438,2]
[329497986,1718397042785,-500.0,0.00016438,2]
[329497987,1718397042811,-4780.4,0.00016438,2]
[329497988,1718397042849,-500.0,0.00016438,2]
[329497989,1718397042863,-500.0,0.00016438,2]
[329497990,1718397042875,-500.0,0.00016438,2]
[329497991,1718397042890,-500.0,0.00016438,2]
[329497992,1718397042911,-500.0,0.00016438,2]
[329497993,1718397042947,-667.98,0.00016438,2]
[329497994,1718397042968,-281.59516316,0.00016438,2]
[329497995,1718397043000,-218.40483684,0.00016438,2]
[329497996,1718397043034,-591.4566365,0.00016438,2]
[329497997,1718397043049,-500.0,0.00016438,2]
[329497998,1718397043104,-500.0,0.00016438,2]
[329497999,1718397043125,-500.0,0.00016438,2]
[329498000,1718397043148,-1339.25017033,0.00016438,2]
[329498001,1718397043162,-673.62982967,0.00016438,2]
[329498002,1718397043197,-500.0,0.00016438,2]
[329498003,1718397043210,-500.0,0.00016438,2]
[329498004,1718397043226,-500.0,0.00016438,2]
[329498005,1718397043241,-656.99,0.00016438,2]
[329498006,1718397043256,-500.0,0.00016438,2]
[329498007,1718397043284,-500.0,0.00016438,2]
[329498008,1718397043295,-500.0,0.00016438,2]
[329498009,1718397043316,-500.0,0.00016438,2]
[329498010,1718397043327,-130.53616888,0.00016438,2]
[329498011,1718397043345,-369.46383112,0.00016438,2]
[329498012,1718397043360,-500.0,0.00016438,2]
[329498013,1718397043377,-1160.15105794,0.00016438,2]
[329498014,1718397043423,-2294.01894206,0.00016438,2]
[329498015,1718397043454,-1135.45,0.00016438,2]
[329498016,1718397043484,-500.0,0.00016438,2]
[329498017,1718397043495,-500.0,0.00016438,2]
[329498018,1718397043506,-820.69,0.00016438,2]
[329498019,1718397043518,-500.0,0.00016438,2]
[329498020,1718397043529,-500.0,0.00016438,2]
[329498021,1718397043541,-276.16,0.00016711,2]
[329498022,1718397043569,-500.0,0.00016711,2]
[329498023,1718397043601,-500.0,0.00016711,2]
[329498024,1718397043613,-500.0,0.00016712,2]
[329498025,1718397043626,-500.0,0.00016712,2]
[329498026,1718397043645,-500.0,0.00016712,2]
[329498027,1718397043672,-500.0,0.00016712,2]
[329498028,1718397043684,-500.0,0.00016712,2]
[329498029,1718397043695,-394.93663829,0.00016712,2]
[329498147,1718397048134,-500.0,0.00016438,2]
[329498150,1718397048165,-500.0,0.00016438,2]
[329498151,1718397048179,-500.0,0.00016711,2]
[329498154,1718397048196,-105.06336171,0.00016712,2]
[329498157,1718397048209,-500.0,0.00016712,2]
[329498159,1718397048222,-500.0,0.00016712,2]
[329498160,1718397048232,-500.0,0.00016712,2]
[329498162,1718397048244,-1312.71,0.00016712,2]
[329498164,1718397048260,-500.0,0.00016712,2]
[329498166,1718397048273,-3479.96859318,0.00016712,2]
[329498169,1718397048302,-11778.05140682,0.00016712,2]
[329498171,1718397048329,-1115.02631942,0.00016712,2]
[329498173,1718397048359,-428.43368058,0.00016712,2]
[329498175,1718397048379,-5541.46,0.00016712,2]
[329498177,1718397048395,-1416.32,0.00016712,2]
[329498179,1718397048409,-500.0,0.00016712,2]
[329498181,1718397048431,-500.0,0.00016712,2]
[329498183,1718397048450,-1628.0,0.00016712,2]
[329498185,1718397048461,-579.41,0.00016712,2]
[329498188,1718397048501,-500.0,0.00016712,2]
[329498189,1718397048521,-4780.4,0.00016712,2]
[329498190,1718397048533,-577.02,0.00016712,2]
[329498192,1718397048543,-477.35520129,0.00016712,2]
[329498204,1718397048744,-22.64479871,0.00016712,2]
[329498206,1718397048768,-667.98,0.00016712,2]
[329498207,1718397048793,-500.0,0.00016712,2]
[329498210,1718397048826,-2012.88,0.00016712,2]
[329498216,1718397048866,-500.0,0.00016712,2]
[329498221,1718397048890,-656.99,0.00016712,2]
[329498224,1718397048900,-500.0,0.00016712,2]
[329498227,1718397048915,-500.0,0.00016712,2]
[329498230,1718397048944,-1366.50520129,0.00016712,2]
[329498238,1718397048990,-335.94853222,0.00016711,2]
[329498241,1718397049001,-298.58093507,0.00016712,2]
[329498301,1718397050394,-1789.08386364,0.00016712,2]
[329498302,1718397050444,-1135.45,0.00016712,2]
[329498304,1718397050455,-500.0,0.00016712,2]
[329498307,1718397050469,-381.65044633,0.00016712,2]
[329498569,1718397101258,164.59282862,9.999e-05,2]
[329498579,1718397351030,1456.65794785,0.0001,2]
[329498581,1718397629685,151.01208097,0.00020169,30]
[329498582,1718397629802,151.01208097,0.00019766,120]
[329498724,1718398159930,-647.81042256,0.00014936,2]
[329498725,1718398160000,-647.81042256,0.00014936,2]
[329498726,1718398160114,-215.18241173,0.00014936,2]
[329498727,1718398185055,-483.93772175,0.00014936,2]
[329498806,1718398234792,-300.0,0.00015123,2]
[329498807,1718398234820,-300.0,0.00015123,2]
[329498808,1718398234834,-5006.980488,0.00015124,2]
[329498809,1718398234863,-166.544428,0.00015124,2]
[329498810,1718398234888,-4931.3179926,0.00015435,2]
[329498814,1718398235226,-6173.38553975,0.00015435,2]
[329498816,1718398235246,-5000.0,0.00015848,2]
[329498819,1718398235308,-5834.68073492,0.00016,2]
[329498820,1718398235325,-164.358899,0.00016164,2]
[329498821,1718398235349,-153.0,0.000162,2]
[329498822,1718398235361,-246.3232031,0.00016334,2]
[329498823,1718398235373,-898.33878823,0.00016337,2]
[329498836,1718398240927,-2009.16598843,0.00016337,2]
[329498837,1718398240964,-1090.78076082,0.00016337,2]
[329498838,1718398241332,-1709.34624482,0.00016337,2]
[329498855,1718398249683,-9274.32210916,0.00016337,2]
[329498856,1718398249698,-246.32320307,0.00016404,2]
[329498857,1718398249710,-278.38317474,0.00016434,4]
[329498858,1718398249725,-207.17413057,0.00016436,2]
[329498859,1718398249753,-155.01240099,0.00016436,2]
[329498860,1718398249777,-249.52587756,0.00016436,2]
[329498861,1718398249791,-278.43696421,0.00016436,2]
[329498862,1718398249814,-267.03977808,0.00016436,7]
[329498863,1718398249830,-1336.09762495,0.00016436,2]
[329498864,1718398249843,-771.57445597,0.00016436,2]
[329498865,1718398249855,-164.73004207,0.00016437,2]
[329498866,1718398249884,-502.6378664,0.00016438,2]
[329498867,1718398249910,-500.0,0.00016438,2]
[329498868,1718398249929,-232.63242454,0.00016438,2]
[329498869,1718398249940,-500.0,0.00016438,2]
[329498870,1718398249957,-500.0,0.00016438,2]
[329498871,1718398249976,-500.0,0.00016438,2]
[329498872,1718398249987,-500.0,0.00016438,2]
[329498873,1718398250000,-524.9819409,0.00016438,2]
[329498874,1718398250015,-489.67867836,0.00016438,2]
[329498875,1718398250027,-500.0,0.00016438,2]
[329498876,1718398250042,-500.0,0.00016438,2]
[329498877,1718398250072,-500.0,0.00016438,2]
[329498878,1718398250093,-500.0,0.00016438,2]
[329498879,1718398250112,-500.0,0.00016438,2]
[329498880,1718398250129,-500.0,0.00016438,2]
[329498881,1718398250146,-500.0,0.00016438,2]
[329498882,1718398250194,-500.0,0.00016438,2]
[329498883,1718398250205,-500.0,0.00016438,2]
[329498884,1718398250230,-500.0,0.00016438,2]
[329498885,1718398250292,-500.0,0.00016438,2]
[329498886,1718398250332,-500.0,0.00016438,2]
[329498887,1718398250368,-500.0,0.00016438,2]
[329498888,1718398250381,-500.0,0.00016438,2]
[329498889,1718398250400,-500.0,0.00016438,2]
[329498890,1718398250412,-500.0,0.00016438,2]
[329498891,1718398250424,-649.1620566,0.00016438,2]
[329498892,1718398250435,-500.0,0.00016438,2]
[329498893,1718398250445,-500.0,0.00016438,2]
[329498894,1718398250459,-500.0,0.00016438,2]
[329498895,1718398250471,-542.85630865,0.00016438,2]
[329498896,1718398250484,-500.0,0.00016438,2]
[329498897,1718398250495,-250.0,0.00016438,2]
[329498898,1718398250521,-529.77,0.00016438,2]
[329498899,1718398250534,-500.0,0.00016438,2]
[329498900,1718398250545,-500.0,0.00016438,2]
[329498901,1718398250564,-500.0,0.00016438,2]
[329498902,1718398250575,-500.0,0.00016438,2]
[329498903,1718398250601,-500.0,0.00016438,2]
[329498904,1718398250611,-500.0,0.00016438,2]
[329498905,1718398250622,-500.0,0.00016438,2]
[329498906,1718398250638,-372.78673862,0.00016438,2]
[329498907,1718398250652,-500.0,0.00016438,2]
[329498908,1718398250677,-500.0,0.00016438,2]
[329498909,1718398250748,-500.0,0.00016438,2]
[329498910,1718398250770,-500.0,0.00016438,2]
[329498911,1718398250781,-500.0,0.00016438,2]
[329498912,1718398250793,-500.0,0.00016438,2]
[329498913,1718398250805,-500.0,0.00016438,2]
[329498914,1718398250822,-500.0,0.00016438,2]
[329498915,1718398250846,-500.0,0.00016438,2]
[329498916,1718398250865,-201.85704448,0.00016438,2]
[329498917,1718398250878,-500.0,0.00016438,2]
[329498918,1718398250904,-500.0,0.00016438,2]
[329498919,1718398250918,-500.0,0.00016438,2]
[329498920,1718398250940,-500.0,0.00016438,2]
[329498921,1718398250957,-1681.84,0.00016438,2]
[329498922,1718398250974,-500.0,0.00016438,2]
[329498923,1718398250992,-500.0,0.00016438,2]
[329498924,1718398251023,-500.0,0.00016438,2]
[329498925,1718398251038,-500.0,0.00016438,2]
[329498926,1718398251064,-500.0,0.00016438,2]
[329498927,1718398251080,-737.32,0.00016438,2]
[329498928,1718398251110,-2135.23,0.00016438,2]
[329498929,1718398251124,-500.0,0.00016438,2]
[329498930,1718398251145,-500.0,0.00016438,2]
[329498931,1718398251170,-500.0,0.00016438,2]
[329498932,1718398251190,-500.0,0.00016438,2]
[329498933,1718398251211,-500.0,0.00016438,2]
[329498934,1718398251264,-500.0,0.00016438,2]
[329498935,1718398251286,-500.0,0.00016438,2]
[329498936,1718398251309,-500.0,0.00016438,2]
[329498937,1718398251335,-500.0,0.00016438,2]
[329498938,1718398251347,-500.0,0.00016438,2]
[329498939,1718398251358,-4635.43,0.00016438,2]
[329498940,1718398251388,-500.0,0.00016438,2]
[329498941,1718398251406,-500.0,0.00016438,2]
[329498942,1718398251450,-500.0,0.00016438,2]
[329498943,1718398251464,-500.0,0.00016438,2]
[329498944,1718398251496,-500.0,0.00016438,2]
[329498945,1718398251526,-500.0,0.00016438,2]
[329498946,1718398251537,-500.0,0.00016438,2]
[329498947,1718398251548,-246.32320307,0.00016473,2]
[329498948,1718398251574,-205.438059,0.000165,2]
[329498949,1718398251587,-205.438059,0.000165,2]
[329498950,1718398251606,-205.438059,0.000165,2]
[329498951,1718398251626,-205.438059,0.000165,2]
[329498952,1718398251638,-246.32320307,0.00016543,2]
[329498953,1718398251649,-246.32320307,0.00016612,2]
[329498954,1718398251661,-420.0,0.00016635,2]
[329498955,1718398251675,-500.0,0.0001671,2]
[329498956,1718398251695,-6457.00719356,0.00016711,13]
[329498957,1718398251752,-644.2457587,0.00016711,2]
[329498958,1718398251764,-500.0,0.00016711,2]
[329498959,1718398251792,-500.0,0.00016711,2]
[329498960,1718398251828,-500.0,0.00016711,2]
[329498961,1718398251864,-500.0,0.00016711,2]
[329498962,1718398251889,-500.0,0.00016711,2]
[329498963,1718398251908,-500.0,0.00016711,2]
[329498964,1718398251937,-500.0,0.00016711,2]
[329498965,1718398251974,-500.0,0.00016711,2]
[329498966,1718398252005,-500.0,0.00016711,2]
[329498967,1718398252040,-537.27,0.00016711,2]
[329498968,1718398252070,-500.0,0.00016711,2]
[329498969,1718398252117,-688.72,0.00016711,2]
[329498970,1718398252141,-500.0,0.00016711,2]
[329498971,1718398252165,-500.0,0.00016711,2]
[329498972,1718398252188,-500.0,0.00016711,2]
[329498973,1718398252202,-500.0,0.00016711,2]
[329498974,1718398252218,-500.0,0.00016711,2]
[329498975,1718398252230,-500.0,0.00016711,2]
[329498976,1718398252245,-532.66482319,0.00016711,2]
[329498977,1718398252274,-500.0,0.00016711,2]
[329498978,1718398252296,-500.0,0.00016711,2]
[329498979,1718398252309,-500.0,0.00016711,2]
[329498980,1718398252338,-500.0,0.00016711,2]
[329498981,1718398252355,-500.0,0.00016711,2]
[329498982,1718398252446,-500.0,0.00016711,2]
[329498983,1718398252488,-531.72,0.00016711,2]
[329498984,1718398252501,-15425.75,0.00016711,2]
[329498985,1718398252519,-1778.17,0.00016711,2]
[329498986,1718398252531,-2206.5,0.00016711,2]
[329498987,1718398252544,-500.0,0.00016711,2]
[329498988,1718398252559,-2001.59,0.00016711,2]
[329498989,1718398252580,-553.0,0.00016711,2]
[329498990,1718398252597,-737.86,0.00016711,2]
[329498991,1718398252611,-500.0,0.00016711,2]
[329498992,1718398252629,-500.0,0.00016711,2]
[329498993,1718398252642,-500.0,0.00016711,2]
[329498994,1718398252662,-500.0,0.00016711,2]
[329498995,1718398252679,-500.0,0.00016711,2]
[329498996,1718398252708,-500.0,0.00016711,2]
[329498997,1718398252721,-5838.77,0.00016711,2]
[329498998,1718398252732,-500.0,0.00016711,2]
[329498999,1718398252745,-500.0,0.00016711,2]
[329499000,1718398252759,-500.0,0.00016711,2]
[329499001,1718398252775,-500.0,0.00016711,2]
[329499002,1718398252806,-500.0,0.00016711,2]
[329499003,1718398252858,-594.15,0.00016711,2]
[329499004,1718398252877,-500.0,0.00016711,2]
[329499005,1718398252917,-903.13,0.00016711,2]
[329499006,1718398252954,-500.0,0.00016711,2]
[329499007,1718398252973,-500.0,0.00016711,2]
[329499008,1718398252988,-500.0,0.00016711,2]
[329499009,1718398253096,-500.0,0.00016711,2]
[329499010,1718398253111,-500.0,0.00016711,2]
[329499011,1718398253149,-1363.31,0.00016711,2]
[329499012,1718398253217,-500.0,0.00016711,2]
[329499013,1718398253250,-500.0,0.00016711,2]
[329499014,1718398253269,-500.0,0.00016711,2]
[329499015,1718398253289,-843.09,0.00016711,2]
[329499016,1718398253305,-500.0,0.00016711,2]
[329499017,1718398253328,-500.0,0.00016711,2]
[329499018,1718398253364,-500.0,0.00016711,2]
[329499019,1718398253380,-500.0,0.00016711,2]
[329499020,1718398253404,-500.0,0.00016711,2]
[329499021,1718398253429,-500.0,0.00016711,2]
[329499022,1718398253476,-500.0,0.00016711,2]
[329499023,1718398253510,-1473.16,0.00016711,2]
[329499024,1718398253541,-500.0,0.00016711,2]
[329499025,1718398253556,-245.91756106,0.00016712,2]
[329499026,1718398253568,-500.0,0.00016712,2]
[329499027,1718398253580,-500.0,0.00016712,2]
[329499028,1718398253638,-500.0,0.00016712,2]
[329499029,1718398253653,-500.0,0.00016712,2]
[329499030,1718398253683,-278.7044711,0.00016712,2]
[329499031,1718398253701,-500.0,0.00016712,2]
[329499032,1718398253736,-500.0,0.00016712,2]
[329499033,1718398253752,-500.0,0.00016712,2]
[329499034,1718398253785,-500.0,0.00016712,2]
[329499035,1718398253798,-500.0,0.00016712,2]
[329499036,1718398253824,-500.0,0.00016712,2]
[329499037,1718398253848,-500.0,0.00016712,2]
[329499038,1718398253892,-500.0,0.00016712,2]
[329499039,1718398253922,-162.32685027,0.00016712,2]
[329499040,1718398253943,-500.0,0.00016712,2]
[329499041,1718398253956,-500.0,0.00016712,2]
[329499042,1718398253980,-529.77,0.00016712,2]
[329499043,1718398254020,-500.0,0.00016712,2]
[329499044,1718398254037,-513.05966408,0.00016712,2]
[329499045,1718398254060,-500.0,0.00016712,2]
[329499046,1718398254210,-500.0,0.00016712,2]
[329499047,1718398254224,-500.0,0.00016712,2]
[329499048,1718398254256,-151.0,0.00016712,2]
[329499050,1718398254271,-151.0,0.00016712,2]
[329499052,1718398254314,-500.0,0.00016712,2]
[329499054,1718398254327,-500.0,0.00016712,2]
[329499055,1718398254345,-500.0,0.00016712,2]
[329499056,1718398254369,-151.0,0.00016712,2]
[329499057,1718398254401,-500.0,0.00016712,2]
[329499058,1718398254413,-500.0,0.00016712,2]
[329499059,1718398254448,-500.0,0.00016712,2]
[329499060,1718398254480,-500.0,0.00016712,2]
[329499062,1718398254502,-1681.84,0.00016712,2]
[329499063,1718398254516,-151.0,0.00016712,2]
[329499064,1718398254558,-165.053587,0.00016712,2]
[329499065,1718398254569,-151.0,0.00016712,2]
[329499066,1718398254590,-500.0,0.00016712,2]
[329499067,1718398254604,-500.0,0.00016712,2]
[329499068,1718398254622,-151.0,0.00016712,2]
[329499069,1718398254633,-500.0,0.00016712,2]
[329499070,1718398254660,-500.0,0.00016712,2]
[329499071,1718398254671,-151.0,0.00016712,2]
[329499072,1718398254682,-737.32,0.00016712,2]
[329499073,1718398254696,-2135.23,0.00016712,2]
[329499074,1718398254711,-500.0,0.00016712,2]
[329499075,1718398254729,-500.0,0.00016712,2]
[329499076,1718398254749,-500.0,0.00016712,2]
[329499077,1718398254772,-151.0,0.00016712,2]
[329499078,1718398254783,-151.0,0.00016712,2]
[329499079,1718398254828,-500.0,0.00016712,2]
[329499080,1718398254840,-151.0,0.00016712,2]
[329499081,1718398254850,-500.0,0.00016712,2]
[329499082,1718398254876,-151.0,0.00016712,2]
[329499083,1718398254900,-151.0,0.00016712,2]
[329499084,1718398254922,-151.0,0.00016712,2]
[329499085,1718398254948,-500.0,0.00016712,2]
[329499086,1718398254968,-4635.43,0.00016712,2]
[329499088,1718398255000,-151.0,0.00016712,2]
[329499089,1718398255029,-500.0,0.00016712,2]
[329499090,1718398255045,-500.0,0.00016712,2]
[329499091,1718398255056,-500.0,0.00016712,2]
[329499092,1718398255084,-205.438059,0.000168,2]
[329499093,1718398255100,-205.438059,0.000168,2]